bitfinex/quotes_BTCUSD_20260101
["timestamp","ask_amount","ask_price","bid_price","bid_amount"]
[1767248971690,0.0456309,87689.0,87678.0,0.01140536]
[1767248971893,0.51609089,87688.0,87678.0,0.01140536]
[1767248972360,0.51609089,87688.0,87677.0,0.01140549]
[1767248972582,0.51609089,87688.0,87679.0,0.01140523]
[1767248972796,0.0456309,87689.0,87679.0,0.01140523]
[1767248981266,0.0456309,87689.0,87678.0,0.01140536]
[1767248981469,0.51609089,87688.0,87679.0,0.01140523]
[1767248981587,0.0456309,87689.0,87679.0,0.01140523]
[1767248993185,0.0456309,87689.0,87678.0,0.01140536]
[1767248994204,0.0456309,87689.0,87679.0,0.01140523]
[1767248994429,0.0456309,87689.0,87678.0,0.01140536]
[1767248994576,0.0456309,87689.0,87679.0,0.01140523]
[1767248995785,0.0456309,87689.0,87675.0,0.02284575]
[1767248996000,1.03218178,87690.0,87675.0,0.02284575]
[1767248996001,0.56237943,87686.0,87675.0,0.02284575]
[1767248996209,0.56237943,87686.0,87675.0,0.01144]
[1767248997060,0.56237943,87686.0,87675.0,0.02284575]
[1767248998107,0.56237943,87686.0,87675.0,0.01144]
[1767248998493,0.56237943,87686.0,87675.0,0.02284575]
[1767248998735,0.56237943,87686.0,87675.0,0.01144]
[1767248998872,0.56237943,87686.0,87675.0,0.02284575]
[1767248999477,0.56237943,87686.0,87675.0,0.01144]
[1767248999778,0.56237943,87686.0,87675.0,0.02284575]
[1767248999988,0.56237943,87686.0,87675.0,0.01144]
[1767249000186,0.56237943,87686.0,87675.0,0.02284575]
[1767249000409,0.04628854,87685.0,87675.0,0.02284575]
[1767249000624,0.04628854,87685.0,87675.0,0.01144]
[1767249006503,0.56249468,87685.0,87675.0,0.01144]
[1767249008255,0.56249468,87685.0,87675.0,0.02284575]
[1767249008455,0.56249468,87685.0,87676.0,0.01140562]
[1767249009275,0.56249468,87685.0,87677.0,0.01140549]
[1767249009992,0.56249468,87685.0,87675.0,0.02284575]
[1767249010192,0.56249468,87685.0,87676.0,0.01140562]
[1767249011905,0.56249468,87685.0,87677.0,0.01140549]
[1767249013789,0.56249468,87685.0,87676.0,0.01140562]
[1767249015638,0.56249468,87685.0,87677.0,0.01140549]
[1767249016070,0.56249468,87685.0,87676.0,0.01140562]
[1767249016256,0.56249468,87685.0,87677.0,0.01140549]
[1767249017025,0.04628854,87685.0,87677.0,0.01140549]
[1767249017446,0.04628854,87685.0,87676.0,0.01140562]
[1767249017639,0.04628854,87685.0,87677.0,0.01140549]
[1767249018324,0.04628854,87685.0,87678.0,0.01140536]
[1767249019994,0.04628854,87685.0,87677.0,0.01140549]
[1767249020196,0.04628854,87685.0,87678.0,0.01140536]
[1767249020608,0.04628854,87685.0,87677.0,0.01140549]
[1767249021501,0.04628854,87685.0,87678.0,0.01140536]
[1767249021819,0.04628854,87685.0,87676.0,0.03425137]
[1767249022004,0.04628854,87685.0,87677.0,0.01140549]
[1767249022215,0.04628854,87685.0,87676.0,0.03425137]
[1767249022663,0.04628854,87685.0,87677.0,0.01140549]
[1767249023221,0.04628854,87685.0,87678.0,0.01140536]
[1767249024839,0.04628854,87685.0,87677.0,0.01140549]
[1767249025237,0.04628854,87685.0,87678.0,0.01140536]
[1767249025869,0.04628854,87685.0,87677.0,0.01140549]
[1767249026222,0.04628854,87685.0,87679.0,0.01140523]
[1767249026424,0.04628854,87685.0,87678.0,0.01140536]
[1767249026741,0.56487063,87690.0,87677.0,0.01140549]
[1767249026957,0.04866449,87689.0,87677.0,0.01140549]
[1767249029561,0.04866449,87689.0,87678.0,0.01140536]
[1767249031415,0.04866449,87689.0,87679.0,0.01140523]
[1767249033638,0.04866449,87689.0,87678.0,0.01140536]
[1767249034327,0.04866449,87689.0,87677.0,0.02281098]
[1767249034711,0.04866449,87689.0,87678.0,0.01140536]
[1767249037408,0.04866449,87689.0,87679.0,0.01140523]
[1767249038256,0.04866449,87689.0,87678.0,0.01140536]
[1767249038776,0.04866449,87689.0,87679.0,0.01140523]
[1767249039280,0.04866449,87689.0,87678.0,0.01140536]
[1767249040079,0.04866449,87689.0,87679.0,0.01140523]
[1767249040270,0.04866449,87689.0,87678.0,0.01140536]
[1767249040473,0.04866449,87689.0,87679.0,0.01140523]
[1767249040675,0.04866449,87689.0,87678.0,0.01140536]
[1767249041875,0.04866449,87689.0,87679.0,0.01140523]
[1767249043452,0.04866449,87689.0,87678.0,0.01140536]
[1767249044557,0.04866449,87689.0,87679.0,0.01140523]
[1767249044759,0.04866449,87689.0,87678.0,0.01140536]
[1767249045605,0.04866449,87689.0,87679.0,0.01140523]
[1767249045804,0.04866449,87689.0,87678.0,0.01140536]
[1767249046238,0.04866449,87689.0,87679.0,0.01140523]
[1767249047212,0.04866449,87689.0,87678.0,0.01140536]
[1767249047617,0.04866449,87689.0,87679.0,0.01140523]
[1767249047818,0.04866449,87689.0,87678.0,0.01140536]
[1767249048056,0.04866449,87689.0,87679.0,0.01140523]
[1767249048434,0.04866449,87689.0,87678.0,0.01140536]
[1767249049351,0.04866449,87689.0,87679.0,0.01140523]
[1767249049668,0.04866449,87689.0,87678.0,0.01140536]
[1767249049869,0.04866449,87689.0,87679.0,0.01140523]
[1767249050217,0.04866449,87689.0,87678.0,0.01140536]
[1767249050412,0.04866449,87689.0,87679.0,0.01140523]
[1767249052685,0.04866449,87689.0,87680.0,0.0114]
[1767249082185,0.56161766,87700.0,87689.0,0.00055]
[1767249082353,0.03605477,87699.0,87681.0,0.05440697]
[1767249082559,0.51613261,87691.0,87682.0,0.043002]
[1767249083575,0.51613261,87692.0,87680.0,0.0114]
[1767249083775,0.51613261,87690.0,87680.0,0.0114]
[1767249084528,0.04533915,87695.0,87680.0,0.0114]
[1767249084822,0.51613261,87690.0,87680.0,0.0228051]
[1767249085022,0.51613261,87690.0,87680.0,0.0114]
[1767249086519,0.56147176,87690.0,87680.0,0.0114]
[1767249086725,0.04533915,87689.0,87680.0,0.0114]
[1767249095042,5.244e-05,87696.0,87680.0,0.0114]
[1767249095243,5.244e-05,87696.0,87691.0,0.01140367]
[1767249095473,5.244e-05,87696.0,87692.0,0.01140354]
[1767249095879,5.244e-05,87696.0,87693.0,0.01140341]
[1767249096078,5.244e-05,87696.0,87692.0,0.01140354]
[1767249096502,5.244e-05,87696.0,87691.0,0.01140367]
[1767249096503,0.52753261,87702.0,87691.0,0.01140367]
[1767249096706,0.52753261,87702.0,87692.0,0.01140354]
[1767249096910,0.52753261,87702.0,87691.0,0.01140367]
[1767249097117,0.52753261,87702.0,87689.0,0.01140393]
[1767249097335,0.51613261,87700.0,87688.0,0.01140406]
[1767249097744,0.56147176,87700.0,87687.0,0.02280419]
[1767249097978,0.04533915,87699.0,87687.0,0.02280419]
[1767249098489,0.04533915,87699.0,87688.0,0.01140406]
[1767249098666,0.04533915,87699.0,87687.0,0.02280419]
[1767249100574,0.04533915,87699.0,87688.0,0.01140406]
[1767249100951,0.04533915,87699.0,87687.0,0.02280419]
[1767249101516,0.04533915,87699.0,87687.0,0.02163703]
[1767249102196,0.04533915,87696.0,87687.0,0.01023284]
[1767249102406,0.04533915,87696.0,87687.0,0.01018184]
[1767249116848,0.04533915,87696.0,87687.0,0.01012481]
[1767249136713,0.04533915,87696.0,87687.0,0.01017725]
[1767249142789,0.04479015,87696.0,87687.0,0.01017725]
[1767249143086,0.04479015,87696.0,87687.0,0.02158144]
[1767249145656,0.04479015,87696.0,87688.0,0.01140406]
[1767249145871,0.04479015,87696.0,87687.0,0.02158144]
[1767249146368,0.04479015,87696.0,87687.0,0.01017725]
[1767249146575,0.04479015,87696.0,87687.0,0.02158144]
[1767249147423,0.04479015,87696.0,87687.0,0.01017725]
[1767249148908,0.04479015,87696.0,87687.0,0.02158144]
[1767249149113,0.04479015,87696.0,87687.0,0.01017725]
[1767249167068,0.04479015,87696.0,87686.0,0.0114]
[1767249167271,0.04937424,87695.0,87686.0,0.0114]
[1767249168034,0.04937424,87695.0,87686.0,0.010851]
[1767249187233,0.04937424,87695.0,87686.0,0.0109316]
[1767249197532,0.04937424,87695.0,87686.0,0.00815159]
[1767249211741,0.04937424,87695.0,87687.0,0.01140419]
[1767249211955,0.04937424,87695.0,87686.0,0.00815159]
[1767249220307,0.04937424,87695.0,87686.0,0.01955591]
[1767249220906,0.04937424,87695.0,87686.0,0.00815159]
[1767249221791,0.04937424,87695.0,87686.0,0.01955591]
[1767249222149,0.04937424,87695.0,87686.0,0.00815159]
[1767249222866,0.04937424,87695.0,87686.0,0.01955591]
[1767249226282,0.04937424,87695.0,87686.0,0.00815159]
[1767249228039,0.04937424,87695.0,87686.0,0.01949889]
[1767249228266,0.04937424,87695.0,87686.0,0.00809457]
[1767249228712,0.04937424,87695.0,87686.0,0.01949889]
[1767249228859,0.04937424,87695.0,87686.0,0.00809457]
[1767249230515,0.04937424,87695.0,87686.0,0.01949889]
[1767249231184,0.04937424,87695.0,87686.0,0.00809457]
[1767249231904,0.04937424,87695.0,87686.0,0.01949889]
[1767249232107,0.04937424,87695.0,87686.0,0.00809457]
[1767249232456,0.04937424,87695.0,87686.0,0.01949889]
[1767249233110,0.04937424,87695.0,87686.0,0.00809457]
[1767249237127,0.04937424,87695.0,87686.0,0.01949889]
[1767249237640,0.04937424,87695.0,87686.0,0.00809457]
[1767249238539,0.04937424,87695.0,87686.0,0.01949889]
[1767249238745,0.04937424,87695.0,87686.0,0.07652003]
[1767249239935,0.04937424,87695.0,87688.0,0.01140406]
[1767249240136,0.04937424,87695.0,87686.0,0.07652003]
[1767249240376,0.04937424,87695.0,87687.0,0.01140419]
[1767249240557,0.04937424,87695.0,87688.0,0.01140406]
[1767249240767,0.04937424,87695.0,87686.0,0.00809457]
[1767249240967,0.04937424,87695.0,87686.0,0.01949889]
[1767249242422,0.04937424,87695.0,87687.0,0.01140419]
[1767249242713,0.51607518,87696.0,87687.0,0.01140419]
[1767249242714,0.51607518,87696.0,87687.0,0.00775666]
[1767249242945,0.50831852,87696.0,87691.0,0.01140367]
[1767249243149,0.0114,87700.0,87689.0,0.0570192]
[1767249244031,0.51607518,87699.0,87689.0,0.0570192]
[1767249244228,0.51607518,87699.0,87689.0,0.01140393]
[1767249244732,0.51607518,87699.0,87688.0,0.01140406]
[1767249245498,0.51607518,87699.0,87687.0,0.01140419]
[1767249245697,0.51607518,87697.0,87688.0,0.01140406]
[1767249247434,0.51607518,87697.0,87689.0,0.01140393]
[1767249248761,0.51607518,87697.0,87690.0,0.0114038]
[1767249248985,0.51607518,87697.0,87689.0,0.01140393]
[1767249249978,0.56359501,87699.0,87690.0,0.0114038]
[1767249250823,0.56359501,87699.0,87691.0,0.01140367]
[1767249251033,0.04751983,87699.0,87692.0,0.01140354]
[1767249251235,0.04751983,87699.0,87691.0,0.01140367]
[1767249251457,0.04751983,87699.0,87692.0,0.01140354]
[1767249251591,0.04751983,87699.0,87691.0,0.01140367]
[1767249251792,0.04751983,87699.0,87692.0,1e-08]
[1767249252004,0.04751983,87699.0,87691.0,0.06842143]
[1767249252779,0.04751983,87699.0,87692.0,0.01140354]
[1767249253181,0.04751983,87699.0,87691.0,0.01140367]
[1767249253426,0.04751983,87699.0,87690.0,0.0114038]
[1767249253607,0.04751983,87699.0,87691.0,0.01140367]
[1767249254049,0.04751983,87699.0,87691.0,0.01077284]
[1767249254252,0.04751983,87699.0,87690.0,0.01140369]
[1767249254483,0.04751983,87699.0,87692.0,0.01140354]
[1767249254707,0.04751983,87699.0,87691.0,0.01140367]
[1767249254883,0.04751983,87699.0,87690.0,0.01140369]
[1767249255275,0.04751983,87699.0,87688.0,0.05701974]
[1767249255457,0.04751983,87699.0,87690.0,0.0114038]
[1767249256445,0.04751983,87699.0,87689.0,0.01140393]
[1767249256713,0.04751983,87699.0,87690.0,0.0114038]
[1767249257951,0.04751983,87699.0,87692.0,0.01140354]
[1767249258190,0.04751983,87699.0,87692.0,0.0113949]
[1767249258518,0.04751983,87699.0,87688.0,0.05701974]
[1767249258519,0.04766573,87708.0,87699.0,0.01140263]
[1767249258733,0.03893973,87708.0,87699.0,0.01140263]
[1767249259147,0.03893973,87708.0,87698.0,0.06841634]
[1767249259148,0.03893973,87708.0,87698.0,0.01140276]
[1767249259298,0.03893973,87708.0,87699.0,0.01140263]
[1767249259488,0.03893973,87708.0,87696.0,0.05701512]
[1767249259489,0.03893973,87708.0,87697.0,0.01140289]
[1767249260087,0.03893973,87708.0,87696.0,0.01140302]
[1767249261098,0.03893973,87708.0,87698.0,0.01140276]
[1767249261564,0.03893973,87708.0,87697.0,0.01140289]
[1767249261713,0.03893973,87708.0,87694.0,0.06841584]
[1767249261714,0.03893973,87708.0,87694.0,0.0114]
[1767249261952,0.03893973,87708.0,87695.0,0.01140315]
[1767249262180,0.03893973,87708.0,87696.0,0.01140302]
[1767249262552,0.03893973,87708.0,87695.0,0.01140315]
[1767249263149,0.03893973,87708.0,87694.0,0.0114]
[1767249263853,0.03893973,87708.0,87694.0,0.02280328]
[1767249264933,0.03893973,87708.0,87694.0,0.0114]
[1767249265467,0.0114,87709.0,87696.0,0.0085801]
[1767249265671,0.01140341,87708.0,87696.0,0.0085801]
[1767249266091,0.01140341,87708.0,87696.0,0.01998312]
[1767249266244,0.01140341,87708.0,87696.0,0.0085801]
[1767249266840,0.01140341,87708.0,87696.0,0.01998312]
[1767249267100,0.01140341,87708.0,87696.0,0.0085801]
[1767249274006,0.01140341,87708.0,87694.0,0.0114]
[1767249277053,0.04851361,87707.0,87694.0,0.0114]
[1767249277626,0.01140354,87706.0,87694.0,0.0114]
[1767249277948,0.04851361,87705.0,87694.0,0.0114]
[1767249278513,0.01140367,87704.0,87694.0,0.0114]
[1767249278718,0.05991728,87704.0,87694.0,0.0114]
[1767249279092,0.04851361,87704.0,87694.0,0.0114]
[1767249279549,0.05991741,87703.0,87694.0,0.0114]
[1767249281151,0.05991741,87703.0,87694.0,0.02280328]
[1767249282838,0.0114038,87703.0,87694.0,0.02280328]
[1767249283271,0.0114038,87703.0,87694.0,0.0114]
[1767249283473,0.0114038,87703.0,87694.0,0.02280328]
[1767249283677,0.04851361,87702.0,87694.0,0.0114]
[1767249288368,0.05991715,87702.0,87694.0,0.0114]
[1767249291899,0.04851361,87702.0,87694.0,0.0114]
[1767249292095,0.01140367,87701.0,87694.0,0.0114]
[1767249293421,0.01140367,87701.0,87694.0,0.02280328]
[1767249293613,0.01140367,87701.0,87694.0,0.0114]
[1767249293821,0.01140367,87701.0,87694.0,0.02280328]
[1767249294051,0.01140367,87701.0,87694.0,0.0114]
[1767249294237,0.01140367,87701.0,87694.0,0.02280328]
[1767249294799,0.04851361,87702.0,87694.0,0.02280328]
[1767249295141,0.07131689,87702.0,87694.0,0.02280328]
[1767249296284,0.07131689,87702.0,87694.0,0.0114]
[1767249296729,0.04851361,87702.0,87694.0,0.0114]
[1767249296932,0.01140367,87701.0,87694.0,0.0114]
[1767249298441,0.01140367,87701.0,87694.0,0.02280328]
[1767249298997,0.01140367,87701.0,87694.0,0.0114]
[1767249307607,0.05955449,87701.0,87694.0,0.0114]
[1767249308019,0.04815082,87701.0,87694.0,0.0114]
[1767249308228,0.0114038,87700.0,87694.0,0.0114]
[1767249314881,0.0114038,87700.0,87694.0,0.010851]
[1767249326037,0.04815082,87701.0,87694.0,0.010851]
[1767249327745,0.04815082,87701.0,87692.0,0.0114]
[1767249327947,0.05978164,87701.0,87692.0,0.0114]
[1767249328690,0.05978164,87701.0,87692.0,0.01085]
[1767249328894,0.05978164,87701.0,87690.0,0.0114]
[1767249329215,0.04586781,87699.0,87690.0,0.0114]
[1767249332959,0.04586781,87699.0,87685.0,0.01140445]
[1767249333185,0.04586781,87699.0,87686.0,0.0114]
[1767249333385,0.04586781,87699.0,87687.0,0.01140419]
[1767249333565,0.04586781,87699.0,87687.0,0.0114]
[1767249333765,0.04586781,87699.0,87687.0,0.02280419]
[1767249334785,0.04586781,87699.0,87688.0,0.01140406]
[1767249335600,0.04586781,87699.0,87689.0,0.01140393]
[1767249335805,0.04586781,87699.0,87688.0,0.01140406]
[1767249336107,0.56180036,87698.0,87688.0,0.01140406]
[1767249336611,0.56180036,87698.0,87687.0,0.0114]
[1767249336906,0.56180036,87698.0,87687.0,0.02280419]
[1767249337223,0.56180036,87698.0,87687.0,0.0114]
[1767249337401,0.04586781,87697.0,87687.0,0.0114]
[1767249341922,0.04586781,87697.0,87687.0,0.02280419]
[1767249342244,0.04586781,87697.0,87687.0,0.0114]
[1767249343992,0.04586781,87697.0,87687.0,0.02280419]
[1767249344586,0.04586781,87697.0,87687.0,0.0114]
[1767249344695,0.04586781,87697.0,87687.0,0.02280419]
[1767249345478,0.04586781,87697.0,87687.0,0.0114]
[1767249345772,0.56180036,87697.0,87687.0,0.02280419]
[1767249345950,0.56180036,87697.0,87687.0,0.0114]
[1767249346359,0.56180036,87697.0,87687.0,0.02280419]
[1767249347427,0.56180036,87697.0,87687.0,0.0114]
[1767249347836,0.56180036,87697.0,87687.0,0.02280419]
[1767249348075,0.56180036,87697.0,87687.0,0.0114]
[1767249349773,0.56180036,87697.0,87687.0,0.02280419]
[1767249351032,0.56180036,87697.0,87687.0,0.0114]
[1767249351234,0.56180036,87697.0,87687.0,0.02280419]
[1767249351930,0.56180036,87697.0,87687.0,0.0114]
[1767249364951,0.04586781,87697.0,87687.0,0.0114]
[1767249365162,0.56180036,87697.0,87687.0,0.0114]
[1767249378663,0.04586781,87697.0,87687.0,0.0114]
[1767249379428,0.04586781,87697.0,87689.0,0.01140393]
[1767249380447,0.04586781,87697.0,87688.0,0.01140406]
[1767249380855,0.04586781,87697.0,87689.0,0.01140393]
[1767249381552,0.04586781,87697.0,87688.0,0.01140406]
[1767249381750,0.04586781,87697.0,87689.0,0.01140393]
[1767249381957,0.04586781,87697.0,87691.0,0.01140367]
[1767249382208,0.04586781,87697.0,87690.0,0.0114038]
[1767249382999,0.04586781,87697.0,87689.0,0.01140393]
[1767249383177,0.04586781,87697.0,87690.0,0.0114038]
[1767249383384,0.04586781,87697.0,87691.0,0.01140367]
[1767249383926,0.04586781,87697.0,87690.0,0.0114038]
[1767249384084,0.04586781,87697.0,87688.0,0.01140406]
[1767249384647,0.04586781,87697.0,87689.0,0.01140393]
[1767249385027,0.04586781,87697.0,87688.0,0.01140406]
[1767249385253,0.04586781,87697.0,87689.0,0.01140393]
[1767249385875,0.04586781,87697.0,87688.0,0.01140406]
[1767249386512,0.04586781,87697.0,87689.0,0.01140393]
[1767249386707,0.04586781,87697.0,87688.0,0.01140406]
[1767249386908,0.04586781,87697.0,87687.0,0.02280419]
[1767249387125,0.04586781,87697.0,87688.0,0.01140406]
[1767249389877,0.04586781,87697.0,87689.0,0.01140393]
[1767249390323,0.04586781,87697.0,87687.0,0.02280419]
[1767249390639,0.04586781,87697.0,87689.0,0.01140393]
[1767249390871,0.04586781,87697.0,87688.0,0.01140406]
[1767249394312,0.04586781,87697.0,87689.0,0.01140393]
[1767249394749,0.04586781,87697.0,87688.0,0.01140406]
[1767249394959,0.04586781,87697.0,87689.0,0.01140393]
[1767249395168,0.04586781,87697.0,87688.0,0.01140406]
[1767249395813,0.04586781,87697.0,87687.0,0.02280419]
[1767249395993,0.04586781,87697.0,87688.0,0.01140406]
[1767249396687,0.04586781,87697.0,87687.0,0.02280419]
[1767249398424,0.04586781,87697.0,87688.0,0.01140406]
[1767249399456,0.04586781,87697.0,87687.0,0.0114]
[1767249399599,0.04586781,87697.0,87687.0,0.02280419]
[1767249400993,0.04586781,87697.0,87687.0,0.0114]
[1767249402335,0.04586781,87697.0,87687.0,0.02280419]
[1767249402538,0.04586781,87697.0,87687.0,0.0114]
[1767249403934,0.04586781,87697.0,87687.0,0.02280419]
[1767249404277,0.04586781,87697.0,87687.0,0.0114]
[1767249404798,0.04586781,87697.0,87687.0,0.02280419]
[1767249405001,0.04586781,87697.0,87687.0,0.0114]
[1767249405258,0.04586781,87697.0,87688.0,0.0114]
[1767249416767,0.04684064,87691.0,87687.0,0.0114]
[1767249418189,0.04684064,87696.0,87687.0,0.0114]
[1767249422214,0.04684064,87696.0,87682.0,0.02280484]
[1767249422417,0.04684064,87696.0,87683.0,0.01140471]
[1767249422780,0.04684064,87696.0,87684.0,0.01140458]
[1767249424470,0.04684064,87696.0,87683.0,0.01140471]
[1767249424632,0.51600298,87693.0,87683.0,0.01140471]
[1767249424836,0.04684064,87696.0,87683.0,0.01140471]
[1767249425423,0.04684064,87696.0,87684.0,0.01140458]
[1767249426057,0.04684064,87696.0,87683.0,0.01140471]
[1767249427214,0.04684064,87696.0,87684.0,0.01140458]
[1767249429572,0.04684064,87696.0,87685.0,0.01140445]
[1767249430329,0.04684064,87696.0,87684.0,0.01140458]
[1767249433264,0.04684064,87696.0,87685.0,0.01140445]
[1767249433945,0.04684064,87696.0,87684.0,0.01140458]
[1767249435614,0.04684064,87696.0,87683.0,0.01140471]
[1767249435821,0.04684064,87696.0,87684.0,0.01140458]
[1767249437533,0.04684064,87696.0,87685.0,0.01140445]
[1767249437756,0.04684064,87696.0,87684.0,0.01140458]
[1767249440595,0.51604558,87694.0,87684.0,0.01140458]
[1767249441294,0.51604558,87694.0,87685.0,0.01140445]
[1767249441667,0.51604558,87694.0,87684.0,0.01140458]
[1767249442390,0.51604558,87694.0,87685.0,0.01140445]
[1767249443169,0.51604558,87694.0,87686.0,0.01140432]
[1767249443738,0.51604558,87694.0,87685.0,0.01140445]
[1767249444844,0.51604558,87694.0,87686.0,0.01140432]
[1767249445483,0.51604558,87694.0,87685.0,0.01140445]
[1767249445689,0.04684064,87696.0,87686.0,0.01140432]
[1767249446043,0.04684064,87696.0,87686.0,0.51604558]
[1767249446465,0.04684064,87696.0,87686.0,0.5274499]
[1767249446670,0.04684064,87696.0,87687.0,0.01140419]
[1767249446870,0.04684064,87696.0,87688.0,0.01140406]
[1767249447277,0.04629164,87696.0,87688.0,0.01140406]
[1767249447655,0.04629164,87696.0,87687.0,0.01140419]
[1767249448118,0.04629164,87696.0,87688.0,0.01140406]
[1767249448471,0.04629164,87696.0,87689.0,0.01140393]
[1767249449212,0.04629164,87696.0,87688.0,0.01140406]
[1767249451001,0.04629164,87696.0,87687.0,0.01140419]
[1767249451201,0.04629164,87696.0,87688.0,0.01140406]
[1767249452864,0.04629164,87696.0,87687.0,0.01140419]
[1767249453046,0.04629164,87696.0,87684.0,0.01140458]
[1767249453247,0.04629164,87696.0,87685.0,0.01140445]
[1767249453846,0.04629164,87696.0,87686.0,0.01140432]
[1767249454361,0.04629164,87696.0,87684.0,0.01140458]
[1767249454567,0.04629164,87696.0,87686.0,0.01140432]
[1767249454766,0.04629164,87696.0,87686.0,0.0113473]
[1767249455160,0.04629164,87696.0,87684.0,0.01140458]
[1767249455360,0.04629164,87696.0,87686.0,0.01140432]
[1767249455562,0.04629164,87696.0,87685.0,0.01140445]
[1767249456186,0.04629164,87696.0,87683.0,0.01140471]
[1767249456518,0.04629164,87696.0,87685.0,0.01140445]
[1767249457081,0.04629164,87696.0,87686.0,0.01140432]
[1767249457285,0.04629164,87696.0,87685.0,0.01140445]
[1767249457817,0.04629164,87696.0,87686.0,0.01140432]
[1767249458141,0.04629164,87696.0,87685.0,0.01140445]
[1767249458808,0.04629164,87696.0,87686.0,0.01140432]
[1767249458986,0.04629164,87696.0,87685.0,0.01140445]
[1767249460659,0.04629164,87696.0,87686.0,0.01140432]
[1767249461945,0.04629164,87696.0,87687.0,0.01140419]
[1767249462095,0.04629164,87696.0,87686.0,0.01140432]
[1767249462601,0.04629164,87696.0,87687.0,0.01140419]
[1767249463322,0.04629164,87696.0,87686.0,0.01140432]
[1767249463546,0.04629164,87696.0,87687.0,0.01140419]
[1767249463709,0.04629164,87696.0,87686.0,0.01140432]
[1767249463909,0.04629164,87696.0,87687.0,0.01140419]
[1767249464223,0.04629164,87696.0,87686.0,0.01140432]
[1767249464825,0.04629164,87696.0,87687.0,0.01140419]
[1767249465365,0.04629164,87696.0,87686.0,0.01140432]
[1767249465803,0.04629164,87696.0,87687.0,0.01140419]
[1767249466107,0.04629164,87696.0,87686.0,0.01140432]
[1767249470706,0.04629164,87696.0,87687.0,0.01140419]
[1767249471095,0.04629164,87696.0,87686.0,0.01140432]
[1767249472804,0.04629164,87696.0,87684.0,0.01140458]
[1767249473074,0.04629164,87696.0,87685.0,0.01140445]
[1767249474936,0.04629164,87696.0,87686.0,0.01140432]
[1767249480151,0.04629164,87696.0,87685.0,0.01140445]
[1767249480693,0.04629164,87696.0,87684.0,0.01140458]
[1767249481046,0.04629164,87696.0,87685.0,0.01140445]
[1767249481269,0.04629164,87696.0,87686.0,0.01140432]
[1767249481600,0.04629164,87696.0,87687.0,0.01140419]
[1767249483113,0.04629164,87696.0,87685.0,0.01140445]
[1767249483265,0.04629164,87696.0,87686.0,0.01140432]
[1767249483465,0.04629164,87696.0,87685.0,0.01140445]
[1767249483962,0.04629164,87696.0,87686.0,0.01140432]
[1767249484372,0.04629164,87696.0,87685.0,0.01140445]
[1767249485699,0.04629164,87696.0,87684.0,0.01140458]
[1767249485901,0.04629164,87696.0,87685.0,0.01140445]
[1767249487323,0.04629164,87696.0,87686.0,0.01140432]
[1767249489362,0.04629164,87696.0,87685.0,0.01140445]
[1767249490406,0.04629164,87696.0,87686.0,0.01140432]
[1767249491183,0.04629164,87696.0,87685.0,0.01140445]
[1767249491336,0.04629164,87696.0,87686.0,0.01140432]
[1767249493177,0.04629164,87696.0,87685.0,0.01140445]
[1767249493486,0.04629164,87696.0,87686.0,0.01140432]
[1767249494523,0.04629164,87696.0,87687.0,0.01140419]
[1767249495029,0.04629164,87696.0,87686.0,0.01140432]
[1767249495185,0.04629164,87696.0,87687.0,0.01140419]
[1767249495802,0.04629164,87696.0,87686.0,0.01140432]
[1767249495987,0.04629164,87696.0,87685.0,0.01140445]
[1767249496894,0.04629164,87696.0,87686.0,0.01140432]
[1767249498302,0.04629164,87696.0,87685.0,0.01140445]
[1767249498903,0.04629164,87696.0,87684.0,0.01140458]
[1767249499183,0.04629164,87696.0,87686.0,0.01140432]
[1767249500033,0.04629164,87696.0,87684.0,0.01140458]
[1767249500199,0.04629164,87696.0,87686.0,0.01140432]
[1767249500423,0.04629164,87696.0,87687.0,0.01140419]
[1767249501165,0.04629164,87696.0,87686.0,0.01140432]
[1767249501319,0.51599912,87700.0,87688.0,0.04704495]
[1767249502451,0.51599912,87700.0,87687.0,0.01140419]
[1767249502854,0.51599912,87700.0,87686.0,0.01140432]
[1767249503053,0.51599912,87700.0,87684.0,0.068427]
[1767249503315,0.51599912,87700.0,87686.0,0.01140432]
[1767249503856,0.51599912,87700.0,87687.0,0.01140419]
[1767249504241,0.51599912,87700.0,87686.0,0.01140432]
[1767249505389,0.51599912,87700.0,87685.0,0.01140445]
[1767249507300,0.51599912,87700.0,87686.0,0.01140432]
[1767249507434,0.51599912,87700.0,87684.0,0.01140458]
[1767249507635,0.01070104,87699.0,87684.0,0.01140458]
[1767249507840,0.51599912,87700.0,87684.0,0.01140458]
[1767249508072,0.01070104,87699.0,87684.0,0.01140458]
[1767249508277,0.51599912,87700.0,87684.0,0.01140458]
[1767249508471,0.01070103,87699.0,87685.0,0.01140445]
[1767249508680,0.51599912,87700.0,87684.0,0.01140458]
[1767249508880,0.01070103,87699.0,87684.0,0.01140458]
[1767249509119,0.04787107,87701.0,87684.0,0.01140458]
[1767249509328,0.52670018,87700.0,87685.0,0.01140445]
[1767249509470,0.51599912,87700.0,87685.0,0.01140445]
[1767249509874,0.51599912,87700.0,87686.0,0.01140432]
[1767249510156,0.51599912,87700.0,87685.0,0.01140445]
[1767249510378,0.51599912,87700.0,87686.0,0.01140432]
[1767249511238,0.56387019,87700.0,87684.0,0.05844953]
[1767249511409,0.56387019,87700.0,87685.0,0.01140445]
[1767249511607,0.56387019,87700.0,87686.0,0.01140432]
[1767249512033,0.56387019,87700.0,87684.0,0.05844953]
[1767249512262,0.56387019,87700.0,87686.0,0.01140432]
[1767249512479,0.56387019,87700.0,87685.0,0.01140445]
[1767249513489,0.56387019,87700.0,87686.0,0.01140432]
[1767249514487,0.56387019,87700.0,87685.0,0.01140445]
[1767249515074,0.56387019,87700.0,87686.0,0.01140432]
[1767249516114,0.56387019,87700.0,87687.0,0.01140419]
[1767249516681,0.56387019,87700.0,87686.0,0.01140432]
[1767249517475,0.56387019,87700.0,87685.0,0.01140445]
[1767249517819,0.56387019,87700.0,87686.0,0.01140432]
[1767249518444,0.56387019,87700.0,87687.0,0.01140419]
[1767249518997,0.56387019,87700.0,87686.0,0.01140432]
[1767249520325,0.56387019,87700.0,87687.0,0.01140419]
[1767249521352,0.56387019,87700.0,87685.0,0.11547109]
[1767249521622,0.56387019,87700.0,87687.0,0.01140419]
[1767249521821,0.56387019,87700.0,87688.0,0.01140406]
[1767249522804,0.56387019,87700.0,87689.0,0.01140393]
[1767249523007,0.56387019,87700.0,87688.0,0.01140406]
[1767249523360,0.56387019,87700.0,87687.0,0.01140419]
[1767249523496,0.56387019,87700.0,87688.0,0.01140406]
[1767249524152,0.56387019,87700.0,87687.0,0.01140419]
[1767249526206,0.56387019,87700.0,87688.0,0.01140406]
[1767249526903,0.56387019,87700.0,87689.0,0.01140393]
[1767249527452,0.56387019,87700.0,87688.0,0.01140406]
[1767249527669,0.56387019,87700.0,87689.0,0.01140393]
[1767249527881,0.56387019,87700.0,87686.0,0.05844927]
[1767249528117,0.56387019,87700.0,87687.0,0.01140419]
[1767249528284,0.56387019,87700.0,87688.0,0.01140406]
[1767249528706,0.56387019,87700.0,87687.0,0.01140419]
[1767249528940,0.56387019,87700.0,87688.0,0.01140406]
[1767249529244,0.51599912,87700.0,87688.0,0.01140406]